bitfinex-derivatives/quotes_SOLF0:USTF0_20250329
["timestamp","ask_amount","ask_price","bid_price","bid_amount"]
[1743218558180,0.05788126,127.57,127.54,0.05209367]
[1743218558386,13.94900849,127.56,127.5,258.72]
[1743218558684,7.8452,127.52,127.49,29.2]
[1743218559486,7.90206987,127.52,127.49,29.25225771]
[1743218559688,7.8457,127.51,127.49,29.25225771]
[1743218559888,0.05686987,127.52,127.49,0.05225771]
[1743218560384,7.8461,127.5,127.49,0.05225771]
[1743218564600,0.05686987,127.52,127.49,0.05225771]
[1743218565601,7.8459,127.51,127.49,0.05225771]
[1743218565994,0.05686987,127.52,127.49,0.05225771]
[1743218566998,0.05686987,127.52,127.49,7.89895771]
[1743218567197,0.05686987,127.52,127.49,0.05225771]
[1743218567395,7.90216987,127.52,127.49,0.05225771]
[1743218567905,0.05686987,127.52,127.49,0.05225771]
[1743218568600,0.05686987,127.52,127.5,37.0457]
[1743218568907,0.05686987,127.52,127.5,29.2]
[1743218569106,0.05686987,127.52,127.51,7.8455]
[1743218569701,0.05686987,127.52,127.5,37.0458]
[1743218569904,0.05686987,127.52,127.49,0.05225771]
[1743218570296,0.05686987,127.52,127.49,14.0012662]
[1743218571505,0.05686987,127.52,127.5,7.8456]
[1743218573601,0.05686987,127.52,127.51,29.2]
[1743218574108,0.05686987,127.52,127.49,43.2012662]
[1743218574705,7.90186987,127.52,127.49,51.0475662]
[1743218575806,0.05686987,127.52,127.49,51.0475662]
[1743218576103,0.05686987,127.52,127.49,43.2012662]
[1743218577394,8.10742025,127.67,127.51,13.94900849]
[1743218577604,19.00706974,127.67,127.61,13.94900849]
[1743218577805,10.89964949,127.67,127.62,29.2]
[1743218578607,0.05499466,127.66,127.63,0.05003984]
[1743218578808,24.84865798,127.67,127.6,29.2]
[1743218579007,7.89133505,127.66,127.63,0.05737591]
[1743218579603,0.05463505,127.66,127.63,0.05737591]
[1743218582000,43.56290253,127.75,127.65,13.94900849]
[1743218582204,43.56290253,127.75,127.7,13.94900849]
[1743218582401,43.56290253,127.75,127.74,13.94900849]
[1743218582607,43.56290253,127.75,127.74,43.14900849]
[1743218582810,43.56290253,127.75,127.74,13.94900849]
[1743218583111,43.56290253,127.75,127.73,29.23772983]
[1743218584816,0.05117144,127.76,127.74,13.94900849]
[1743218585017,0.05117144,127.76,127.73,29.23772983]
[1743218585511,0.05117144,127.76,127.73,0.05772983]
[1743218587719,7.88137144,127.76,127.73,0.05772983]
[1743218588717,0.05117144,127.76,127.73,0.05772983]
[1743218589011,22.2795122,127.76,127.67,29.16]
[1743218589217,7.8333,127.71,127.64,22.22834076]
[1743218589414,7.8333,127.71,127.65,29.16]
[1743218590215,0.05059814,127.69,127.67,0.05458418]
[1743218593823,7.88509814,127.69,127.67,0.05458418]
[1743218594121,0.05059814,127.69,127.67,0.05458418]
[1743218595314,7.88509814,127.69,127.67,0.05458418]
[1743218595520,0.05059814,127.69,127.67,0.05458418]
[1743218595922,7.88539814,127.69,127.67,0.05458418]
[1743218596332,0.05059814,127.69,127.67,0.05458418]
[1743218596518,7.835,127.68,127.67,0.05458418]
[1743218596817,0.05059814,127.69,127.67,0.05458418]
[1743218597631,7.835,127.68,127.67,0.05458418]
[1743218598132,7.8382,127.63,127.58,30.66864076]
[1743218598328,7.8382,127.63,127.59,29.16]
[1743218598926,7.8387,127.62,127.59,29.16]
[1743218599125,7.89283845,127.62,127.6,0.04993247]
[1743218599433,0.05413845,127.62,127.6,0.04993247]
[1743218600118,7.89323845,127.62,127.6,0.04993247]
[1743218602323,7.8393,127.61,127.6,0.04993247]
[1743218614041,0.05413845,127.62,127.6,0.04993247]
[1743218615243,0.05413845,127.62,127.6,7.88983247]
[1743218615935,0.05413845,127.62,127.6,0.04993247]
[1743218616138,7.89303845,127.62,127.6,0.04993247]
[1743218616337,0.05413845,127.62,127.6,0.04993247]
[1743218616844,7.8393,127.61,127.6,0.04993247]
[1743218617141,0.05413845,127.62,127.6,0.04993247]
[1743218617930,7.89323845,127.62,127.6,0.04993247]
[1743218618142,0.05413845,127.62,127.6,0.04993247]
[1743218619633,7.89313845,127.62,127.6,0.04993247]
[1743218620141,4.2733,127.68,127.61,13.92425779]
[1743218620447,4.0789,127.73,127.65,13.92425779]
[1743218620638,8.3054,127.73,127.67,13.92425779]
[1743218620840,8.3054,127.73,127.67,21.75985779]
[1743218621038,8.3054,127.73,127.69,13.92425779]
[1743218621345,7.89137054,127.72,127.7,0.05444835]
[1743218621846,0.05837054,127.72,127.7,0.05444835]
[1743218622038,0.05837054,127.72,127.71,13.92425779]
[1743218622239,43.56290253,127.75,127.71,13.92425779]
[1743218622435,43.56290253,127.75,127.72,29.18]
[1743218622941,51.39370253,127.75,127.72,29.18]
[1743218623546,7.88289917,127.75,127.72,29.18]
[1743218624348,0.05209917,127.75,127.72,29.18]
[1743218625147,7.8317,127.74,127.72,29.18]
[1743218625350,0.05209917,127.75,127.7,0.05444835]
[1743218625649,7.8329,127.72,127.7,0.05444835]
[1743218626148,7.8332,127.71,127.7,0.05444835]
[1743218628955,7.88943749,127.72,127.7,0.05444835]
[1743218629153,0.05663749,127.72,127.7,0.05444835]
[1743218632955,7.88923749,127.72,127.7,0.05444835]
[1743218633361,7.8332,127.71,127.7,0.05444835]
[1743218634258,7.88963749,127.72,127.7,0.05444835]
[1743218636757,7.8332,127.71,127.7,0.05444835]
[1743218636961,0.05663749,127.72,127.7,0.05444835]
[1743218637262,7.88943749,127.72,127.7,0.05444835]
[1743218640466,0.05663749,127.72,127.7,0.05444835]
[1743218640867,0.05663749,127.72,127.7,7.88824835]
[1743218641162,0.05663749,127.72,127.7,0.05444835]
[1743218641864,7.8332,127.71,127.7,0.05444835]
[1743218645470,8.4232,127.71,127.66,29.14]
[1743218646369,7.8351,127.68,127.66,29.14]
[1743218646670,7.8351,127.68,127.67,0.05036472]
[1743218650576,0.05281753,127.7,127.67,0.05036472]
[1743218650577,7.8347,127.69,127.67,0.05036472]
[1743218651681,0.05281753,127.7,127.69,7.8344]
[1743218655771,4.3456,127.75,127.71,7.8331]
[1743218656278,7.8315,127.74,127.71,7.8331]
[1743218656882,21.7977157,127.74,127.58,364.0]
[1743218657087,13.92425779,127.69,127.61,86.79299811]
[1743218657293,29.14,127.68,127.61,86.79299811]
[1743218657494,7.8387,127.62,127.61,86.79299811]
[1743218657889,29.14,127.65,127.61,86.79299811]
[1743218658097,0.05374022,127.63,127.61,86.79299811]
[1743218660198,0.05374022,127.63,127.6,0.05059057]
[1743218666899,0.05374022,127.63,127.6,7.89049057]
[1743218668300,0.05374022,127.63,127.6,0.05059057]
[1743218668900,7.89204022,127.63,127.6,0.05059057]
[1743218669101,0.05374022,127.63,127.6,0.05059057]
[1743218669604,0.05374022,127.63,127.6,43.11484836]
[1743218669802,0.05374022,127.63,127.62,7.8387]
[1743218675794,4.022e-05,127.63,127.62,7.8387]
[1743218676000,4.022e-05,127.63,127.62,21.76295779]
[1743218677004,37.3841,127.72,127.62,35.68851558]
[1743218677005,8.2441,127.72,127.62,35.68851558]
[1743218677318,7.8327,127.72,127.65,13.92425779]
[1743218677504,29.14,127.74,127.69,7.8341]
[1743218677702,29.14,127.74,127.67,13.92425779]
[1743218677902,7.8323,127.73,127.67,13.92425779]
[1743218678199,0.05754581,127.72,127.69,0.05974035]
[1743218678801,0.05754581,127.72,127.7,7.8336]
[1743218679009,0.05754581,127.72,127.69,0.05974035]
[1743218680010,7.89014581,127.72,127.69,0.05974035]
[1743218680710,0.05754581,127.72,127.69,0.05974035]
[1743218681009,13.92425779,127.71,127.69,0.05974035]
[1743218681202,7.8338,127.7,127.69,4.035e-05]
[1743218681406,47.37825779,127.71,127.63,37.4109]
[1743218681709,13.92425779,127.69,127.63,37.4109]
[1743218682407,7.8364,127.66,127.65,0.05569219]
[1743218684811,7.84,127.66,127.56,1.36315563]
[1743218685018,13.92425779,127.63,127.55,622.44]
[1743218685203,13.92425779,127.63,127.55,287.58]
[1743218685405,7.8405,127.59,127.55,258.44]
[1743218685605,7.8405,127.59,127.55,287.58]
[1743218685907,7.8405,127.59,127.55,295.4227]
[1743218686115,7.89318592,127.58,127.56,0.05153422]
[1743218686413,7.8413,127.58,127.56,0.05153422]
[1743218686707,7.8418,127.57,127.56,0.05153422]
[1743218687308,7.90132164,127.58,127.56,0.05153422]
[1743218687612,0.05992164,127.58,127.56,0.05153422]
[1743218689014,7.90132164,127.58,127.56,0.05153422]
[1743218689407,0.05992164,127.58,127.56,0.05153422]
[1743218691210,0.05992164,127.58,127.57,7.8418]
[1743218691515,13.92425779,127.63,127.57,7.8418]
[1743218692011,7.839,127.62,127.57,7.8418]
[1743218692812,0.0564957,127.61,127.58,0.05607514]
[1743218693210,13.98075349,127.61,127.58,0.05607514]
[1743218693406,7.8405,127.59,127.58,0.05607514]
[1743218693808,13.98075349,127.61,127.58,0.05607514]
[1743218694008,7.8403,127.6,127.58,0.05607514]
[1743218694208,13.98075349,127.61,127.58,0.05607514]
[1743218694616,7.8404,127.6,127.58,0.05607514]
[1743218695210,0.0564957,127.61,127.58,0.05607514]
[1743218695710,0.0564957,127.61,127.58,7.89677514]
[1743218698016,7.8959957,127.61,127.58,7.89677514]
[1743218700214,0.0564957,127.61,127.58,0.05607514]
[1743218700516,0.0564957,127.61,127.58,43.14033293]
[1743218700709,7.8356,127.67,127.6,13.92425779]
[1743218700912,7.8356,127.67,127.62,13.92425779]
[1743218701114,7.8356,127.67,127.62,43.08425779]
[1743218701811,0.05656348,127.66,127.63,7.89527949]
[1743218702416,0.05656348,127.66,127.64,7.8372]
[1743218702615,0.05656348,127.66,127.63,0.05767949]
[1743218703118,0.05656348,127.66,127.65,7.8368]
[1743218703318,0.05656348,127.66,127.65,36.9768]
[1743218704413,7.834,127.7,127.66,7.8357]
[1743218704612,7.834,127.7,127.66,21.75995779]
[1743218705120,7.8345,127.69,127.66,21.75995779]
[1743218705317,4.3029,127.72,127.66,21.75995779]
[1743218705619,0.05018878,127.69,127.67,7.8355]
[1743218706408,0.05018878,127.69,127.68,7.835]
[1743218707216,310.26652611,127.79,127.68,7.835]
[1743218707217,272.48425779,127.77,127.71,7.8332]
[1743218707517,29.14,127.76,127.71,7.8332]
[1743218708019,13.92425779,127.77,127.71,7.8332]
[1743218708425,7.88980505,127.75,127.73,0.05085276]
[1743218708814,0.05860505,127.75,127.73,0.05085276]
[1743218709320,7.8313,127.74,127.73,0.05085276]
[1743218710321,7.8338,127.7,127.68,29.14]
[1743218710821,7.8338,127.7,127.66,50.90015779]
[1743218711215,7.8338,127.7,127.66,43.06425779]
[1743218711411,0.05742503,127.69,127.67,0.05889443]
[1743218711612,33.1993,127.72,127.65,295.4763]
[1743218711816,0.05906831,127.69,127.67,0.05702865]
[1743218712724,0.05906831,127.69,127.67,7.89262865]
[1743218713225,0.05906831,127.69,127.67,0.05702865]
[1743218715724,7.835,127.68,127.67,0.05702865]
[1743218717226,7.835,127.68,127.59,258.42]
[1743218717227,36.96,127.68,127.61,29.12]
[1743218717423,13.92425779,127.66,127.6,7.8396]
[1743218717928,7.8379,127.64,127.6,7.8396]
[1743218718426,0.05206824,127.63,127.61,0.05776635]
[1743218718621,7.89026824,127.63,127.61,0.05776635]
[1743218719228,0.05206824,127.63,127.61,0.05776635]
[1743218719919,0.05206824,127.63,127.61,29.17776635]
[1743218720830,0.05206824,127.63,127.62,7.8387]
[1743218722531,0.05206824,127.63,127.61,37.01696635]
[1743218722732,0.05206824,127.63,127.61,29.17776635]
[1743218724434,0.05206824,127.63,127.61,37.01696635]
[1743218724635,0.05206824,127.63,127.61,29.17776635]
[1743218724829,35.0828866,127.79,127.66,387.5]
[1743218725022,347.63550744,127.81,127.79,7.8283]
[1743218725226,242.13417815,127.81,127.79,37.3083]
[1743218725426,242.13417815,127.81,127.8,13.92425779]
[1743218725825,242.13417815,127.81,127.75,262.4665]
[1743218725826,10.81721804,127.77,127.76,13.92425779]
[1743218726029,10.81721804,127.77,127.76,43.46425779]
[1743218726925,10.81721804,127.77,127.76,29.54]
[1743218728428,0.05109885,127.78,127.76,29.54]
[1743218737032,7.8273,127.81,127.76,29.54]
[1743218737033,4.2086,127.85,127.76,51.76268946]
[1743218738039,0.05404675,127.82,127.79,0.05480536]
[1743218742743,7.8276,127.8,127.79,0.05480536]
[1743218742941,37.2076,127.8,127.79,0.05480536]
[1743218743637,7.8302,127.76,127.74,29.38]
[1743218743836,7.8302,127.76,127.72,22.22268946]
[1743218743837,4.0288,127.79,127.7,26.22918946]
[1743218744043,29.36,127.78,127.7,51.58268946]
[1743218744434,29.36,127.78,127.68,51.58268946]
[1743218744839,0.05636185,127.74,127.72,0.06014845]
[1743218745444,7.88816185,127.74,127.72,0.06014845]
[1743218745840,0.05636185,127.74,127.72,0.06014845]
[1743218746143,7.8319,127.73,127.72,0.06014845]
[1743218746540,0.05636185,127.74,127.72,0.06014845]
[1743218746746,0.05636185,127.74,127.72,51.62283791]
[1743218746943,4.0288,127.79,127.72,51.62283791]
[1743218747144,7.8287,127.79,127.75,22.22268946]
[1743218747348,7.8287,127.79,127.75,51.60268946]
[1743218747650,29.36,127.82,127.75,51.60268946]
[1743218747850,7.8293,127.78,127.75,51.60268946]
[1743218748149,7.8815333,127.78,127.75,51.66014074]
[1743218750847,7.8815333,127.78,127.77,13.88688342]
[1743218756844,7.8297,127.77,127.75,29.43745128]
[1743218757158,0.0522333,127.78,127.75,29.43745128]
[1743218757356,7.8301,127.76,127.75,29.43745128]
[1743218757551,7.8301,127.76,127.75,0.05745128]
[1743218763554,4.0032,127.77,127.7,43.02688342]
[1743218763754,21.93158342,127.77,127.7,13.88688342]
[1743218764756,0.06017484,127.75,127.72,0.05247588]
[1743218765460,7.8319,127.73,127.72,0.05247588]
[1743218771658,7.8316,127.74,127.72,13.9393593]
[1743218772261,7.8319,127.73,127.72,13.9393593]
[1743218773865,7.8319,127.73,127.72,0.05247588]
[1743218774869,7.8316,127.74,127.72,0.05247588]
[1743218776370,7.8316,127.74,127.72,7.88497588]
[1743218776566,7.89117484,127.75,127.72,7.88497588]
[1743218776971,0.06017484,127.75,127.72,0.05247588]
[1743218777375,0.06017484,127.75,127.72,13.9393593]
[1743218777673,0.06017484,127.75,127.74,21.71818342]
[1743218777872,37.0602,127.81,127.74,13.88688342]
[1743218778877,7.8299,127.77,127.76,0.05122799]
[1743218780472,7.8292,127.78,127.76,0.05122799]
[1743218781077,7.88147007,127.79,127.76,7.88112799]
[1743218781372,0.05307007,127.79,127.76,13.93811141]
[1743218782272,0.05307007,127.79,127.77,7.829]
[1743218782871,0.05307007,127.79,127.78,7.8289]
[1743218783482,4.2198,127.86,127.81,7.827]
[1743218783980,7.8248,127.85,127.81,7.827]
[1743218784177,4.1358,127.88,127.81,29.12]
[1743218784382,33.2558,127.88,127.82,13.88688342]
[1743218784678,0.05817351,127.86,127.83,0.0537064]
[1743218785078,0.05817351,127.86,127.83,7.8791064]
[1743218786477,0.05817351,127.86,127.83,0.0537064]
[1743218786478,7.88217351,127.86,127.83,0.0537064]
[1743218786674,0.05817351,127.86,127.83,0.0537064]
[1743218787071,7.8246,127.85,127.83,0.0537064]
[1743218787881,7.8252,127.84,127.83,0.0537064]
[1743218788383,7.8248,127.85,127.83,0.0537064]
[1743218789778,7.8252,127.84,127.83,0.0537064]
[1743218790781,7.8248,127.85,127.83,0.0537064]
[1743218791881,7.88237351,127.86,127.83,7.8795064]
[1743218792986,7.8247,127.85,127.83,0.0537064]
[1743218793684,7.88227351,127.86,127.83,0.0537064]
[1743218795986,0.05817351,127.86,127.83,7.8795064]
[1743218796285,0.05817351,127.86,127.84,13.88688342]
[1743218796591,0.05817351,127.86,127.85,7.8246]
[1743218801094,0.05817351,127.86,127.84,50.81178342]
[1743218803088,0.05817351,127.86,127.84,29.1]
[1743218803290,0.05817351,127.86,127.83,0.0537064]
[1743218803690,7.88247351,127.86,127.83,0.0537064]
[1743218804191,7.88247351,127.86,127.83,7.8792064]
[1743218804995,0.05817351,127.86,127.84,13.88688342]
[1743218805389,0.05817351,127.86,127.85,29.08]
[1743218805590,0.05817351,127.86,127.85,36.9046]
[1743218807697,7.822,127.9,127.85,29.08]
[1743218807898,7.822,127.9,127.86,13.88688342]
[1743218808293,7.822,127.9,127.87,7.8233]
[1743218808499,7.822,127.9,127.86,13.88688342]
[1743218808701,7.8223,127.89,127.86,13.88688342]
[1743218808900,7.87301296,127.89,127.87,0.0601038]
[1743218809296,0.05071296,127.89,127.87,0.0601038]
[1743218810801,7.87291296,127.89,127.87,0.0601038]
[1743218813603,0.05071296,127.89,127.87,7.8834038]
[1743218813798,0.05071296,127.89,127.87,0.0601038]
[1743218814805,7.87321296,127.89,127.87,0.0601038]
[1743218815001,7.87321296,127.89,127.87,8.93525252]
[1743218815810,7.8228,127.88,127.87,0.0601038]
[1743218817808,8.87514872,127.88,127.84,29.08]
[1743218818000,8.87514872,127.88,127.83,8.87514872]
[1743218818196,8.87514872,127.86,127.81,8.87514872]
[1743218818397,7.8262,127.83,127.81,8.87514872]
[1743218818603,7.8262,127.83,127.8,60.53371871]
[1743218818803,7.8268,127.82,127.8,8.87514872]
[1743218819012,8.92971998,127.83,127.8,0.05654013]
[1743218819597,8.87514872,127.82,127.8,0.05654013]
[1743218819811,7.8276,127.81,127.8,0.05654013]
[1743218820310,7.8268,127.82,127.8,0.05654013]
[1743218820505,0.05457126,127.83,127.8,0.05654013]
[1743218820906,7.827,127.81,127.8,0.05654013]
[1743218821302,0.05457126,127.83,127.8,0.05654013]
[1743218822606,0.05457126,127.83,127.81,13.88495487]
[1743218822809,13.88495487,127.92,127.81,13.88495487]
[1743218823006,7.8237,127.87,127.83,21.71045487]
[1743218823313,22.40775487,127.92,127.83,13.88495487]
[1743218823512,7.8225,127.89,127.85,13.88495487]
[1743218823705,7.8225,127.89,127.85,42.96495487]
[1743218823904,0.05108982,127.88,127.86,0.05384106]
[1743218824107,7.87428982,127.88,127.86,0.05384106]
[1743218824406,0.05108982,127.88,127.86,0.05384106]
[1743218826210,7.87418982,127.88,127.86,0.05384106]
[1743218827016,7.8234,127.87,127.86,0.05384106]
[1743218828417,7.87408982,127.88,127.86,0.05384106]
[1743218829817,7.8234,127.87,127.86,0.05384106]
[1743218830616,7.87408982,127.88,127.86,0.05384106]
[1743218833618,7.8234,127.87,127.86,0.05384106]
[1743218833818,0.05108982,127.88,127.83,29.08]
[1743218834021,0.05108982,127.88,127.83,42.96495487]
[1743218834321,7.8238,127.87,127.83,50.79045487]
[1743218834515,7.8238,127.87,127.83,21.71045487]
[1743218834711,7.8238,127.87,127.83,50.79045487]
[1743218834914,7.8238,127.87,127.84,0.06001125]
[1743218835616,7.8241,127.86,127.84,0.06001125]
[1743218835919,0.05108982,127.88,127.84,0.06001125]
[1743218836822,7.8244,127.86,127.84,0.06001125]
[1743218837824,0.05108982,127.88,127.84,0.06001125]
[1743218840426,7.8246,127.85,127.84,0.06001125]
[1743218845126,7.8264,127.82,127.8,8.88178292]
[1743218845929,7.8264,127.82,127.79,36.908]
[1743218845930,7.8264,127.82,127.79,8.88178292]
[1743218846326,7.88462106,127.82,127.8,8.88178292]
[1743218852134,7.827,127.81,127.8,8.88178292]
[1743218854430,7.827,127.81,127.79,8.94038129]
[1743218854936,0.05822106,127.82,127.79,8.94038129]
[1743218855324,0.05822106,127.82,127.79,0.05859837]
[1743218855534,8.88178292,127.8,127.75,37.96178292]
[1743218855835,8.88178292,127.77,127.73,29.08]
[1743218856130,7.8302,127.76,127.73,37.96178292]
[1743218856335,8.88178292,127.81,127.75,8.88178292]
[1743218856537,37.96178292,127.82,127.77,8.88178292]
[1743218856735,0.05409563,127.79,127.77,0.05737687]
[1743218856938,37.96178292,127.84,127.78,8.88178292]
[1743218857129,7.8268,127.82,127.79,8.88178292]
[1743218857329,7.88554361,127.82,127.79,8.88178292]
[1743218857531,0.05874361,127.82,127.79,0.05670765]
[1743218857731,8.94052653,127.82,127.79,0.05670765]
[1743218857927,8.88178292,127.81,127.79,0.05670765]
[1743218858134,8.88178292,127.8,127.79,0.05670765]
[1743218858333,16.70938292,127.8,127.79,0.05670765]
[1743218858537,8.88178292,127.8,127.75,8.88178292]
[1743218858834,8.88178292,127.79,127.75,8.88178292]
[1743218859040,33.1575,127.81,127.73,8.88178292]
[1743218859041,8.88178292,127.77,127.73,8.88178292]
[1743218859337,7.8317,127.74,127.71,8.88178292]
[1743218859636,7.88860941,127.74,127.71,8.93675466]
[1743218859839,0.05690941,127.74,127.71,8.93675466]
[1743218860138,7.8323,127.73,127.71,8.93675466]
[1743218861035,7.8326,127.72,127.71,0.05497174]
[1743218861840,7.8322,127.73,127.71,0.05497174]
[1743218862340,0.05690941,127.74,127.71,8.93675466]
[1743218863039,8.88178292,127.73,127.71,0.05497174]
[1743218863744,7.8326,127.72,127.71,0.05497174]
[1743218868442,38.03869233,127.74,127.69,8.88178292]
[1743218868645,0.05690941,127.74,127.72,8.88178292]
[1743218869750,0.05690941,127.74,127.72,8.94190704]
[1743218871152,0.05690941,127.74,127.72,16.77440704]
[1743218871451,0.05690941,127.74,127.73,8.88178292]
[1743218871646,0.05690941,127.74,127.72,8.94190704]
[1743218872448,0.05690941,127.74,127.73,8.88178292]
[1743218872653,0.05690941,127.74,127.72,38.04190704]
[1743218872847,0.05690941,127.74,127.72,0.06012412]
[1743218873048,7.88860941,127.74,127.72,0.06012412]
[1743218873953,7.8319,127.73,127.72,0.06012412]
[1743218874748,7.88850941,127.74,127.72,8.94190704]
[1743218875156,0.05690941,127.74,127.72,8.94190704]
[1743218876353,7.88840941,127.74,127.72,8.94190704]
[1743218876656,7.88840941,127.74,127.72,0.06012412]
[1743218876859,0.05690941,127.74,127.72,0.06012412]
[1743218877649,7.88850941,127.74,127.72,0.06012412]
[1743218878254,7.8319,127.73,127.72,0.06012412]
[1743218879456,7.88840941,127.74,127.72,0.06012412]
[1743218879754,0.05690941,127.74,127.72,0.06012412]
[1743218880859,0.05690941,127.74,127.72,7.89262412]
[1743218881048,0.05690941,127.74,127.72,0.06012412]
[1743218881252,0.05690941,127.74,127.73,37.98178292]
[1743218881654,37.98178292,127.81,127.73,37.98178292]
[1743218881854,37.98178292,127.81,127.76,8.88178292]
[1743218882061,7.8284,127.79,127.76,16.71158292]
[1743218882756,7.88420925,127.79,127.76,16.76374803]
[1743218883363,0.05580925,127.79,127.76,16.76374803]
[1743218883660,0.05580925,127.79,127.76,45.86374803]
[1743218884258,7.88410925,127.79,127.76,45.86374803]
[1743218886367,7.88410925,127.79,127.76,38.03394803]
[1743218886569,7.8289,127.78,127.76,29.15216511]
[1743218886962,7.88430925,127.79,127.76,29.15216511]
[1743218887763,8.93759217,127.79,127.76,0.05216511]
[1743218888861,7.8292,127.78,127.76,0.05216511]
[1743218889060,8.93759217,127.79,127.66,347.62100608]
[1743218889061,8.88178292,127.77,127.66,347.62100608]
[1743218889258,8.88178292,127.74,127.69,8.88178292]
[1743218889569,8.88178292,127.73,127.68,37.96178292]
[1743218889969,7.8328,127.72,127.68,37.96178292]
[1743218890162,0.05225035,127.72,127.7,8.88178292]
[1743218890869,0.05225035,127.72,127.69,7.88676101]
[1743218891566,0.05225035,127.72,127.7,7.8336]
[1743218891772,42.98381385,127.79,127.71,29.08]
[1743218891972,42.98381385,127.79,127.71,33.4056]
[1743218892169,4.2291,127.82,127.74,13.90381385]
[1743218892373,4.2291,127.82,127.76,13.90381385]
[1743218892575,7.8294,127.78,127.76,13.90381385]
[1743218892769,4.2291,127.82,127.74,50.81471385]
[1743218892968,0.05792938,127.78,127.76,0.05590828]
[1743218894068,7.88722938,127.78,127.76,0.05590828]
[1743218894270,0.05792938,127.78,127.76,0.05590828]
[1743218894663,7.8295,127.77,127.76,0.05590828]
[1743218899080,7.8319,127.73,127.72,29.08]
[1743218899377,7.8319,127.73,127.71,29.08]
[1743218899773,7.8326,127.72,127.71,29.08]
[1743218900479,7.8326,127.72,127.7,29.13777542]
[1743218901878,7.8326,127.72,127.7,0.05777542]
[1743218902179,0.04955466,127.73,127.7,29.13777542]
[1743218903279,7.8329,127.72,127.7,29.13777542]
[1743218904180,7.88175466,127.73,127.7,36.97157542]
[1743218904377,0.04955466,127.73,127.7,43.04158927]
[1743218904777,0.04955466,127.73,127.71,7.8328]
[1743218905483,0.04955466,127.73,127.7,29.13777542]
[1743218906084,7.8331,127.72,127.7,29.13777542]
[1743218906784,0.04955466,127.73,127.7,29.13777542]
[1743218907285,7.8331,127.72,127.7,29.13777542]
[1743218907683,0.04955466,127.73,127.7,0.05777542]
[1743218907886,7.8332,127.71,127.7,0.05777542]
[1743218911586,7.8328,127.72,127.7,0.05777542]
[1743218911782,0.04955466,127.73,127.7,0.05777542]
[1743218912784,7.8326,127.72,127.7,0.05777542]
[1743218912984,0.04955466,127.73,127.7,0.05777542]
[1743218913583,7.8332,127.71,127.7,0.05777542]
[1743218916995,7.8351,127.68,127.65,33.1457]
[1743218917391,7.8366,127.66,127.6,13.90381385]
[1743218917595,42.98381385,127.7,127.62,29.08]
[1743218917790,42.98381385,127.7,127.62,42.98381385]
[1743218917990,42.98381385,127.7,127.64,7.8371]
[1743218918191,7.89511725,127.67,127.65,0.05408245]
[1743218918593,7.8362,127.66,127.65,0.05408245]
[1743218919890,7.89521725,127.67,127.65,0.05408245]
[1743218921899,7.8362,127.66,127.65,0.05408245]
[1743218922599,7.89521725,127.67,127.65,0.05408245]
[1743218923799,0.05931725,127.67,127.65,0.05408245]
[1743218924197,0.05931725,127.67,127.65,7.89088245]
[1743218926008,7.89501725,127.67,127.65,0.05408245]
[1743218926808,16.74223284,127.66,127.65,0.05408245]
[1743218926999,8.90603284,127.66,127.59,13.03223284]
[1743218927196,8.90603284,127.64,127.59,8.90603284]
[1743218927401,8.90603284,127.63,127.58,8.90603284]
[1743218927705,7.8396,127.61,127.57,45.84733284]
[1743218927899,4.2172,127.66,127.58,8.90603284]
[1743218927900,8.90603284,127.63,127.58,8.90603284]
[1743218928100,0.05578067,127.6,127.59,8.90603284]
[1743218928300,7.8392,127.62,127.59,8.90603284]
[1743218928599,0.05189399,127.61,127.59,8.90603284]
[1743218929005,0.05189399,127.61,127.57,43.02749585]
[1743218930109,0.05189399,127.61,127.6,7.8399]
[1743218930304,0.05189399,127.61,127.6,36.9399]
[1743218932216,0.05189399,127.61,127.6,29.1]
[1743218932412,0.05189399,127.61,127.58,29.1]
[1743218932913,7.89169399,127.61,127.58,29.1]
[1743218934311,7.8403,127.6,127.57,21.76869585]
[1743218934811,7.89139399,127.61,127.57,21.76869585]
[1743218935013,0.05189399,127.61,127.57,13.92749585]
[1743218935310,0.05189399,127.61,127.6,13.92749585]
[1743218935616,37.3175,127.66,127.6,43.02749585]
[1743218935617,7.8371,127.65,127.6,43.02749585]
[1743218935806,4.0003,127.66,127.6,43.02749585]
[1743218936113,11.8369,127.66,127.63,7.838]
[1743218936507,11.8369,127.66,127.6,43.02749585]
[1743218936702,7.8369,127.65,127.63,0.05790252]
[1743218939011,7.8375,127.64,127.63,0.05790252]
[1743218941925,7.8398,127.61,127.58,50.86809585]
[1743218943013,7.89727008,127.61,127.58,50.86809585]